fUST/lending_fUST_20250214
["ID","MTS","AMOUNT","RATE_DAILY","PERIOD"]
[353059032,1739535040151,-500.0,0.00013773,2]
[353059033,1739535040160,-500.0,0.00013773,2]
[353059035,1739535040169,-500.0,0.00013773,2]
[353059037,1739535040178,-500.0,0.00013773,2]
[353059039,1739535040187,-500.0,0.00013773,2]
[353059041,1739535040196,-500.0,0.00013773,2]
[353059043,1739535040205,-445.31914749,0.00013773,2]
[353059045,1739535040214,-500.0,0.00013773,2]
[353059047,1739535040223,-500.0,0.00013773,2]
[353059049,1739535040232,-500.0,0.00013773,2]
[353059051,1739535040241,-500.0,0.00013773,2]
[353059053,1739535040251,-500.0,0.00013773,2]
[353059055,1739535040260,-500.0,0.00013773,2]
[353059057,1739535040269,-500.0,0.00013773,2]
[353059059,1739535040279,-500.0,0.00013773,2]
[353059061,1739535040289,-500.0,0.00013773,2]
[353059063,1739535040298,-500.0,0.00013773,2]
[353059066,1739535040307,-500.0,0.00013773,2]
[353059068,1739535040317,-500.0,0.00013773,2]
[353059070,1739535040326,-500.0,0.00013773,2]
[353059072,1739535040335,-194.38702051,0.00013773,2]
[353059074,1739535040347,-500.0,0.00013773,2]
[353059076,1739535040356,-500.0,0.00013773,2]
[353059078,1739535040365,-500.0,0.00013773,2]
[353059080,1739535040374,-500.0,0.00013773,2]
[353059082,1739535040384,-500.0,0.00013773,2]
[353059084,1739535040393,-500.0,0.00013773,2]
[353059086,1739535040403,-500.0,0.00013773,2]
[353059088,1739535040412,-500.0,0.00013773,2]
[353059090,1739535040421,-500.0,0.00013773,2]
[353059092,1739535040431,-500.0,0.00013773,2]
[353059094,1739535040440,-500.0,0.00013773,2]
[353059096,1739535040449,-500.0,0.00013773,2]
[353059098,1739535040458,-500.0,0.00013773,2]
[353059100,1739535040467,-500.0,0.00013773,2]
[353059102,1739535040477,-500.0,0.00013773,2]
[353059104,1739535040486,-500.0,0.00013773,2]
[353059106,1739535040495,-500.0,0.0001378,2]
[353059108,1739535040504,-1398.08659606,0.00013863,5]
[353059110,1739535040514,-500.0,0.00013863,2]
[353059112,1739535040523,-396.0,0.00013903,2]
[353059114,1739535040533,-500.0,0.00013945,2]
[353059116,1739535040542,-29421.17954606,0.00014,5]
[353059120,1739535040647,-307.82442636,0.00014,5]
[353059121,1739535040783,-151.0,0.00013698,2]
[353059122,1739535040794,-267.91076104,0.00013779,2]
[353059123,1739535040805,-625.55232193,0.00014,5]
[353059160,1739535046098,-552.74,0.00013698,2]
[353059161,1739535046108,-151.0,0.00013698,2]
[353059162,1739535046117,-215.9231093,0.000137,2]
[353059163,1739535046126,-154.666516,0.000137,2]
[353059164,1739535046135,-275.6703747,0.000137,2]
[353059230,1739536232357,-162.582494,0.00010685,2]
[353059231,1739536232366,-476.11624577,0.00012893,2]
[353059232,1739536232376,-700.0,0.00012993,2]
[353059233,1739536232385,-1000.0,0.00013,13]
[353059234,1739536232395,-165.83304536,0.00013598,2]
[353059235,1739536232404,-187.07472737,0.00013598,2]
[353059236,1739536232413,-3000.0,0.0001368,2]
[353059237,1739536232422,-300.0,0.00013688,2]
[353059238,1739536232431,-5906.09693047,0.00013689,2]
[353059239,1739536232440,-24495.70322071,0.0001369,2]
[353059240,1739536232449,-500.0,0.00013698,2]
[353059241,1739536232459,-494.95366369,0.00013698,2]
[353059242,1739536232468,-500.0,0.00013698,2]
[353059244,1739536232477,-498.68632513,0.00013698,2]
[353059246,1739536232486,-500.0,0.00013698,2]
[353059247,1739536232495,-292.16768748,0.00013698,2]
[353059250,1739536232505,-500.0,0.00013698,2]
[353059252,1739536232514,-500.0,0.00013698,2]
[353059253,1739536232523,-664.97,0.00013698,2]
[353059254,1739536232533,-581.27,0.00013698,2]
[353059256,1739536232542,-500.0,0.00013698,2]
[353059257,1739536232551,-500.0,0.00013698,2]
[353059259,1739536232560,-500.0,0.00013698,2]
[353059260,1739536232570,-805.72,0.00013698,2]
[353059261,1739536232579,-500.0,0.00013698,2]
[353059262,1739536232588,-242.15972585,0.00013698,2]
[353059263,1739536232598,-500.0,0.00013698,2]
[353059264,1739536232607,-500.0,0.00013698,2]
[353059265,1739536232616,-500.0,0.00013698,2]
[353059266,1739536232625,-500.0,0.00013698,2]
[353059267,1739536232634,-500.0,0.00013698,2]
[353059268,1739536232643,-500.0,0.00013698,2]
[353059269,1739536232653,-500.0,0.00013698,2]
[353059270,1739536232662,-500.0,0.00013698,2]
[353059271,1739536232671,-790.66,0.00013698,2]
[353059272,1739536232681,-500.0,0.00013698,2]
[353059273,1739536232690,-500.0,0.00013698,2]
[353059274,1739536232700,-500.0,0.00013698,2]
[353059275,1739536232710,-500.0,0.00013698,2]
[353059276,1739536232720,-500.0,0.00013698,2]
[353059277,1739536232730,-168.52,0.00013698,2]
[353059278,1739536232739,-500.0,0.00013698,2]
[353059279,1739536232748,-276.4194998,0.00013698,2]
[353059280,1739536232758,-500.0,0.00013698,2]
[353059281,1739536232767,-500.0,0.00013698,2]
[353059282,1739536232776,-500.0,0.00013698,2]
[353059283,1739536232787,-500.0,0.00013698,2]
[353059284,1739536232796,-500.0,0.00013698,2]
[353059285,1739536232806,-500.0,0.00013698,2]
[353059286,1739536232815,-500.0,0.00013698,2]
[353059287,1739536232824,-500.0,0.00013698,2]
[353059288,1739536232833,-1171.31,0.00013698,2]
[353059289,1739536232842,-500.0,0.00013698,2]
[353059290,1739536232851,-500.0,0.00013698,2]
[353059291,1739536232861,-500.0,0.00013698,2]
[353059292,1739536232870,-979.22,0.00013698,2]
[353059293,1739536232880,-500.0,0.00013698,2]
[353059294,1739536232889,-500.0,0.00013698,2]
[353059295,1739536232899,-500.0,0.00013698,2]
[353059296,1739536232908,-500.0,0.00013698,2]
[353059297,1739536232918,-362.35952819,0.00013698,2]
[353059298,1739536232927,-500.0,0.00013698,2]
[353059299,1739536232937,-882.53,0.00013698,2]
[353059300,1739536232947,-500.0,0.00013698,2]
[353059301,1739536232956,-562.25315162,0.00013698,2]
[353059302,1739536232966,-500.0,0.00013698,2]
[353059303,1739536232975,-596.26,0.00013698,2]
[353059304,1739536232984,-500.0,0.00013698,2]
[353059305,1739536232994,-500.0,0.00013698,2]
[353059306,1739536233003,-500.0,0.00013698,2]
[353059307,1739536233013,-10655.38,0.00013698,2]
[353059308,1739536233022,-500.0,0.00013698,2]
[353059309,1739536233032,-500.0,0.00013698,2]
[353059310,1739536233042,-500.0,0.00013698,2]
[353059311,1739536233051,-290.97151791,0.00013698,2]
[353059312,1739536233060,-500.0,0.00013698,2]
[353059313,1739536233070,-1176.99,0.00013698,2]
[353059314,1739536233079,-2460.23,0.00013698,2]
[353059315,1739536233088,-500.0,0.00013698,2]
[353059316,1739536233097,-2877.29,0.00013698,2]
[353059317,1739536233107,-5659.18,0.00013698,2]
[353059318,1739536233116,-500.0,0.00013698,2]
[353059319,1739536233126,-1265.7,0.00013698,2]
[353059320,1739536233269,-500.0,0.00013698,2]
[353059321,1739536233279,-500.0,0.00013698,2]
[353059322,1739536233289,-987.4,0.00013698,2]
[353059323,1739536233299,-500.0,0.00013698,2]
[353059324,1739536233308,-3169.08,0.00013698,2]
[353059325,1739536233318,-500.0,0.00013698,2]
[353059326,1739536233328,-710.56,0.00013698,2]
[353059327,1739536233337,-1784.33,0.00013698,2]
[353059328,1739536233347,-303.3672912,0.00013698,2]
[353059329,1739536233357,-500.0,0.00013698,2]
[353059330,1739536233366,-723.97,0.00013698,2]
[353059331,1739536233375,-3026.76933033,0.00013698,2]
[353059332,1739536233388,-654.86091982,0.00013698,2]
[353059333,1739536233400,-12097.24974985,0.00013698,2]
[353059334,1739536233409,-500.0,0.00013698,2]
[353059335,1739536233419,-1383.71039237,0.00013698,2]
[353059359,1739536238373,-324.7914492,0.00013698,2]
[353059374,1739536240530,-564.36815843,0.00013698,2]
[353059375,1739536240540,-366.66014893,0.00013698,2]
[353059376,1739536240552,-895.44334516,0.00013698,2]
[353059391,1739536243390,-76.91650591,0.00013698,2]
[353059392,1739536243399,-4559.61452859,0.00013698,2]
[353059393,1739536243446,-6559.81547141,0.00013698,2]
[353059394,1739536243456,-500.0,0.00013698,2]
[353059395,1739536243467,-5949.47,0.00013698,2]
[353059396,1739536243477,-828.6,0.00013698,2]
[353059397,1739536243487,-500.0,0.00013698,2]
[353059398,1739536243496,-779.49,0.00013698,2]
[353059399,1739536243506,-500.0,0.00013698,2]
[353059400,1739536243516,-699.06,0.00013698,2]
[353059401,1739536243525,-996.08,0.00013698,2]
[353059402,1739536243535,-500.0,0.00013698,2]
[353059403,1739536243544,-500.0,0.00013698,2]
[353059404,1739536243554,-2218.42,0.00013698,2]
[353059405,1739536243563,-868.05,0.00013698,2]
[353059406,1739536243572,-946.66,0.00013698,2]
[353059407,1739536243582,-2161.22,0.00013698,2]
[353059408,1739536243592,-500.0,0.00013698,2]
[353059409,1739536243601,-1093.87,0.00013698,2]
[353059410,1739536243610,-1496.0,0.00013698,2]
[353059411,1739536243619,-500.0,0.00013698,2]
[353059412,1739536243629,-865.64,0.00013698,2]
[353059413,1739536243638,-500.0,0.00013698,2]
[353059414,1739536243648,-500.0,0.00013698,2]
[353059415,1739536243658,-500.0,0.00013698,2]
[353059416,1739536243668,-202.84905446,0.00013698,2]
[353059417,1739536243678,-686.93,0.00013698,2]
[353059418,1739536243688,-500.0,0.00013698,2]
[353059419,1739536243698,-500.0,0.00013698,2]
[353059420,1739536243708,-500.0,0.00013698,2]
[353059421,1739536243717,-1323.34,0.00013698,2]
[353059422,1739536243726,-500.0,0.00013698,2]
[353059423,1739536243736,-833.4,0.00013698,2]
[353059424,1739536243745,-500.0,0.00013698,2]
[353059425,1739536243755,-3008.83,0.00013698,2]
[353059426,1739536243765,-500.0,0.00013698,2]
[353059427,1739536243774,-500.0,0.00013698,2]
[353059428,1739536243784,-500.0,0.00013698,2]
[353059429,1739536243795,-500.0,0.00013698,2]
[353059430,1739536243804,-786.53,0.00013698,2]
[353059431,1739536243814,-392.685642,0.00013699,2]
[353059432,1739536243823,-257.454926,0.00013699,2]
[353059433,1739536243835,-25408.45662623,0.000137,2]
[353059434,1739536243844,-215.7505313,0.000137,2]
[353059435,1739536243854,-165.8330453,0.00013762,2]
[353059436,1739536243864,-237.47795186,0.00013771,2]
[353059437,1739536243873,-7438.69753278,0.00013776,2]
[353059438,1739536243883,-500.0,0.00013779,2]
[353059439,1739536243892,-327.25768306,0.00013779,2]
[353059440,1739536243902,-500.0,0.00013779,2]
[353059441,1739536243912,-269.43870205,0.00013779,2]
[353059442,1739536243922,-152.11267899,0.00013779,2]
[353059443,1739536243931,-500.0,0.00013779,2]
[353059444,1739536243941,-500.0,0.00013779,2]
[353059445,1739536243951,-500.0,0.00013779,2]
[353059446,1739536243961,-500.0,0.00013779,2]
[353059447,1739536243970,-500.0,0.00013779,2]
[353059448,1739536243980,-500.0,0.0001378,2]
[353059449,1739536243989,-500.0,0.0001378,2]
[353059450,1739536243999,-664.97,0.0001378,2]
[353059451,1739536244008,-581.27,0.0001378,2]
[353059452,1739536244018,-500.0,0.0001378,2]
[353059453,1739536244028,-500.0,0.0001378,2]
[353059454,1739536244037,-500.0,0.0001378,2]
[353059455,1739536244047,-805.72,0.0001378,2]
[353059456,1739536244057,-500.0,0.0001378,2]
[353059457,1739536244066,-500.0,0.0001378,2]
[353059458,1739536244076,-500.0,0.0001378,2]
[353059459,1739536244087,-500.0,0.0001378,2]
[353059460,1739536244096,-500.0,0.0001378,2]
[353059461,1739536244106,-500.0,0.0001378,2]
[353059462,1739536244115,-500.0,0.0001378,2]
[353059463,1739536244125,-500.0,0.0001378,2]
[353059464,1739536244135,-790.66,0.0001378,2]
[353059465,1739536244144,-500.0,0.0001378,2]
[353059466,1739536244154,-500.0,0.0001378,2]
[353059467,1739536244163,-500.0,0.0001378,2]
[353059468,1739536244173,-500.0,0.0001378,2]
[353059469,1739536244184,-505.34928355,0.0001378,2]
[353059470,1739536244195,-500.0,0.0001378,2]
[353059471,1739536244209,-1171.31,0.0001378,2]
[353059472,1739536244218,-500.0,0.0001378,2]
[353059473,1739536244228,-979.22,0.0001378,2]
[353059474,1739536244240,-500.0,0.0001378,2]
[353059475,1739536244250,-500.0,0.0001378,2]
[353059476,1739536244259,-500.0,0.0001378,2]
[353059477,1739536244272,-882.53,0.0001378,2]
[353059478,1739536244288,-500.0,0.0001378,2]
[353059479,1739536244298,-355.99411959,0.0001378,2]
[353059480,1739536244307,-500.0,0.0001378,2]
[353059481,1739536244317,-10655.38,0.0001378,2]
[353059482,1739536244326,-500.0,0.0001378,2]
[353059483,1739536244336,-1176.99,0.0001378,2]
[353059484,1739536244346,-2460.23,0.0001378,2]
[353059485,1739536244355,-2877.29,0.0001378,2]
[353059486,1739536244366,-5659.18,0.0001378,2]
[353059487,1739536244376,-500.0,0.0001378,2]
[353059488,1739536244385,-1265.7,0.0001378,2]
[353059489,1739536244395,-322.21245798,0.0001378,2]
[353059490,1739536244405,-987.4,0.0001378,2]
[353059491,1739536244414,-500.0,0.0001378,2]
[353059492,1739536244424,-3169.08,0.0001378,2]
[353059493,1739536244433,-500.0,0.0001378,2]
[353059494,1739536244443,-710.56,0.0001378,2]
[353059495,1739536244452,-1784.33,0.0001378,2]
[353059496,1739536244462,-500.0,0.0001378,2]
[353059497,1739536244471,-723.97,0.0001378,2]
[353059498,1739536244481,-15778.88,0.0001378,2]
[353059499,1739536244491,-2272.87,0.0001378,2]
[353059500,1739536244501,-1339.02,0.0001378,2]
[353059501,1739536244510,-11119.43,0.0001378,2]
[353059502,1739536244520,-500.0,0.0001378,2]
[353059503,1739536244530,-5949.47,0.0001378,2]
[353059504,1739536244540,-828.6,0.0001378,2]
[353059505,1739536244550,-779.49,0.0001378,2]
[353059506,1739536244560,-500.0,0.0001378,2]
[353059507,1739536244569,-699.06,0.0001378,2]
[353059508,1739536244579,-996.08,0.0001378,2]
[353059509,1739536244588,-500.0,0.0001378,2]
[353059510,1739536244598,-500.0,0.0001378,2]
[353059511,1739536244608,-2218.42,0.0001378,2]
[353059512,1739536244618,-868.05,0.0001378,2]
[353059513,1739536244627,-946.66,0.0001378,2]
[353059514,1739536244636,-2161.22,0.0001378,2]
[353059515,1739536244645,-1093.87,0.0001378,2]
[353059516,1739536244655,-1496.0,0.0001378,2]
[353059517,1739536244665,-865.64,0.0001378,2]
[353059518,1739536244675,-686.93,0.0001378,2]
[353059519,1739536244684,-500.0,0.0001378,2]
[353059520,1739536244694,-500.0,0.0001378,2]
[353059521,1739536244703,-500.0,0.0001378,2]
[353059522,1739536244713,-1323.34,0.0001378,2]
[353059523,1739536244723,-833.4,0.0001378,2]
[353059524,1739536244736,-3008.83,0.0001378,2]
[353059525,1739536244745,-500.0,0.0001378,2]
[353059526,1739536244754,-500.0,0.0001378,2]
[353059527,1739536244764,-500.0,0.0001378,2]
[353059528,1739536244773,-500.0,0.0001378,2]
[353059529,1739536244782,-786.53,0.0001378,2]
[353059530,1739536244792,-205.98802,0.00013859,2]
[353059531,1739536244801,-429.857,0.00013862,2]
[353059532,1739536244811,-500.0,0.00013863,2]
[353059533,1739536244821,-500.0,0.00013863,2]
[353059534,1739536244832,-664.97,0.00013863,2]
[353059535,1739536244841,-581.27,0.00013863,2]
[353059536,1739536244851,-500.0,0.00013863,2]
[353059537,1739536244860,-344.80852237,0.00013863,2]
[353059538,1739536244870,-500.0,0.00013863,2]
[353059539,1739536244879,-805.72,0.00013863,2]
[353059540,1739536244889,-500.0,0.00013863,2]
[353059541,1739536244898,-500.0,0.00013863,2]
[353059542,1739536244907,-539.0630135,0.00013863,2]
[353059543,1739536244918,-500.0,0.00013863,2]
[353059544,1739536244929,-500.0,0.00013863,2]
[353059545,1739536244939,-500.0,0.00013863,2]
[353059546,1739536244949,-500.0,0.00013863,2]
[353059547,1739536244958,-790.66,0.00013863,2]
[353059548,1739536244967,-500.0,0.00013863,2]
[353059549,1739536244976,-500.0,0.00013863,2]
[353059550,1739536244985,-500.0,0.00013863,2]
[353059551,1739536244995,-500.0,0.00013863,2]
[353059552,1739536245003,-500.0,0.00013863,2]
[353059553,1739536245013,-1171.31,0.00013863,2]
[353059554,1739536245022,-500.0,0.00013863,2]
[353059555,1739536245031,-979.22,0.00013863,2]
[353059556,1739536245040,-255.36,0.00013863,2]
[353059557,1739536245049,-500.0,0.00013863,2]
[353059558,1739536245059,-500.0,0.00013863,2]
[353059559,1739536245068,-882.53,0.00013863,2]
[353059560,1739536245079,-500.0,0.00013863,2]
[353059561,1739536245088,-500.0,0.00013863,2]
[353059562,1739536245097,-10655.38,0.00013863,2]
[353059563,1739536245106,-500.0,0.00013863,2]
[353059564,1739536245116,-1176.99,0.00013863,2]
[353059565,1739536245125,-2460.23,0.00013863,2]
[353059566,1739536245134,-660.8511314,0.00013863,2]
[353059567,1739536245148,-1382.01163,0.00013863,2]
[353059568,1739536245163,-834.4272386,0.00013863,2]
[353059569,1739536245173,-1665.5727614,0.00013863,2]
[353059570,1739536245185,-3993.6072386,0.00013863,2]
[353059571,1739536245194,-500.0,0.00013863,2]
[353059572,1739536245208,-1265.7,0.00013863,2]
[353059573,1739536245217,-987.4,0.00013863,2]
[353059574,1739536245227,-500.0,0.00013863,2]
[353059575,1739536245236,-3169.08,0.00013863,2]
[353059576,1739536245247,-500.0,0.00013863,2]
[353059577,1739536245256,-710.56,0.00013863,2]
[353059578,1739536245266,-1272.65276236,0.00013863,2]
[353059580,1739536246549,-345.91111322,0.00013698,2]
[353059581,1739536246559,-396.0,0.00013858,2]
[353059582,1739536246568,-511.67723764,0.00013863,2]
[353059583,1739536246578,-500.0,0.00013863,2]
[353059584,1739536246587,-723.97,0.00013863,2]
[353059585,1739536246596,-528.92519279,0.00013863,2]
[353059586,1739536246607,-1291.49292525,0.00013863,2]
[353059587,1739536246619,-4906.86377783,0.00013863,2]
[353059588,1739536246630,-1969.61665068,0.00013863,2]
[353060094,1739537432747,-486.73589619,0.00010959,2]
[353060102,1739537432818,-293.81410381,0.00010959,2]
[353060104,1739537432827,-700.0,0.00012993,2]
[353060106,1739537432837,-12724.73497616,0.00013503,2]
[353060108,1739537432846,-345.36626187,0.00013597,2]
[353060110,1739537432856,-300.0,0.00013631,2]
[353060112,1739537432865,-4620.96818241,0.0001368,2]
[353060114,1739537432874,-573.24047468,0.00013696,2]
[353060116,1739537432886,-552.26226718,0.00013696,2]
[353060118,1739537432897,-500.0,0.00013696,2]
[353060120,1739537432906,-500.0,0.00013696,2]
[353060122,1739537432915,-629.00378803,0.00013696,2]
[353060124,1739537432925,-500.0,0.00013696,2]
[353060126,1739537432935,-500.0,0.00013696,2]
[353060128,1739537432945,-500.0,0.00013696,2]
[353060130,1739537432955,-500.0,0.00013696,2]
[353060132,1739537432965,-299.78150479,0.00013696,2]
[353060134,1739537432975,-239.47899978,0.00013696,2]
[353060136,1739537432984,-26186.69767461,0.00013697,5]
[353060138,1739537432993,-85341.99320905,0.00013697,5]
[353060140,1739537433002,-9424.88733363,0.00013697,7]
[353060142,1739537433014,-500.0,0.00013697,7]
[353060145,1739537433031,-774.93691325,0.00013697,7]
[353060522,1739537438433,-500.0,0.00013696,2]
[353060524,1739537438443,-7560.49809728,0.00013697,5]
[353060530,1739537438492,-5532.85074003,0.00013697,5]
[353060532,1739537438505,-839310.16759802,0.00013697,7]
[353060534,1739537438514,-500.0,0.00013698,2]
[353060536,1739537438523,-500.0,0.00013698,2]
[353060538,1739537438533,-500.0,0.00013698,2]
[353060540,1739537438543,-500.0,0.00013698,2]
[353060542,1739537438552,-500.0,0.00013698,2]
[353060545,1739537438570,-500.0,0.00013698,2]
[353060547,1739537438582,-500.0,0.00013698,2]
[353060549,1739537438592,-500.0,0.00013698,2]
[353060551,1739537438601,-500.0,0.00013698,2]
[353060553,1739537438612,-228.72462489,0.00013698,2]
[353060556,1739537438626,-181.85589958,0.00013698,2]
[353060559,1739537438636,-500.0,0.00013698,2]
[353060562,1739537438645,-500.0,0.00013698,2]
[353060566,1739537438656,-500.0,0.00013698,2]
[353060568,1739537438667,-276.00400845,0.00013698,2]
[353060571,1739537438676,-500.0,0.00013698,2]
[353060575,1739537438686,-500.0,0.00013698,2]
[353060577,1739537438696,-506.96944338,0.00013698,2]
[353060581,1739537438707,-500.0,0.00013698,2]
[353060583,1739537438716,-500.0,0.00013698,2]
[353060587,1739537438726,-327.18047127,0.00013698,2]
[353060590,1739537438735,-500.0,0.00013698,2]
[353060592,1739537438745,-500.0,0.00013698,2]
[353060594,1739537438754,-500.0,0.00013698,2]
[353060596,1739537438763,-500.0,0.00013698,2]
[353060598,1739537438773,-500.0,0.00013698,2]
[353060600,1739537438782,-500.0,0.00013698,2]
[353060602,1739537438792,-500.0,0.00013698,2]
[353060604,1739537438801,-500.0,0.00013698,2]
[353060606,1739537438811,-500.0,0.00013698,2]
[353060608,1739537438820,-500.0,0.00013698,2]
[353060610,1739537438830,-500.0,0.00013698,2]
[353060613,1739537438839,-500.0,0.00013698,2]
[353060615,1739537438848,-500.0,0.00013698,2]
[353060617,1739537438858,-500.0,0.00013698,2]
[353060619,1739537438867,-500.0,0.00013698,2]
[353060621,1739537438876,-154.77990034,0.00013698,2]
[353060623,1739537438886,-501.41088043,0.00013698,2]
[353060625,1739537438896,-500.0,0.00013698,2]
[353060627,1739537438906,-500.0,0.00013698,2]
[353060629,1739537438915,-500.0,0.00013698,2]
[353060631,1739537438925,-500.0,0.00013698,2]
[353060633,1739537438936,-500.0,0.00013698,2]
[353060635,1739537438945,-501.44177746,0.00013698,2]
[353060636,1739537438955,-611.22755659,0.00013698,2]
[353060637,1739537438964,-500.0,0.00013698,2]
[353060638,1739537438974,-909.79,0.00013698,2]
[353060639,1739537438983,-500.0,0.00013698,2]
[353060640,1739537438993,-500.0,0.00013698,2]
[353060641,1739537439003,-485.20282217,0.00013698,2]
[353060642,1739537439012,-500.0,0.00013698,2]
[353060643,1739537439021,-500.0,0.00013698,2]
[353060644,1739537439031,-500.0,0.00013698,2]
[353060645,1739537439041,-506.30246226,0.00013698,2]
[353060646,1739537439050,-500.0,0.00013698,2]
[353060647,1739537439060,-500.0,0.00013698,2]
[353060649,1739537439070,-581.85,0.00013698,2]
[353060650,1739537439080,-500.0,0.00013698,2]
[353060652,1739537439089,-500.0,0.00013698,2]
[353060654,1739537439099,-500.0,0.00013698,2]
[353060656,1739537439109,-500.0,0.00013698,2]
[353060658,1739537439118,-503.34614275,0.00013698,2]
[353060661,1739537439131,-508.61,0.00013698,2]
[353060663,1739537439140,-500.0,0.00013698,2]
[353060665,1739537439149,-500.0,0.00013698,2]
[353060667,1739537439158,-500.0,0.00013698,2]
[353060668,1739537439169,-500.0,0.00013698,2]
[353060669,1739537439179,-500.0,0.00013698,2]
[353060670,1739537439188,-500.0,0.00013698,2]
[353060671,1739537439197,-502.50574112,0.00013698,2]
[353060672,1739537439206,-500.0,0.00013698,2]
[353060673,1739537439216,-500.0,0.00013698,2]
[353060674,1739537439227,-500.0,0.00013698,2]
[353060675,1739537439237,-500.0,0.00013698,2]
[353060676,1739537439246,-500.0,0.00013698,2]
[353060677,1739537439255,-500.0,0.00013698,2]
[353060678,1739537439265,-547.93797377,0.00013698,2]
[353060679,1739537439275,-726.95,0.00013698,2]
[353060680,1739537439284,-500.0,0.00013698,2]
[353060681,1739537439456,-500.0,0.00013698,2]
[353060682,1739537439467,-500.0,0.00013698,2]
[353060683,1739537439478,-500.0,0.00013698,2]
[353060684,1739537439487,-500.0,0.00013698,2]
[353060685,1739537439497,-500.0,0.00013698,2]
[353060686,1739537439506,-500.0,0.00013698,2]
[353060687,1739537439516,-500.0,0.00013698,2]
[353060688,1739537439526,-500.0,0.00013698,2]
[353060689,1739537439536,-500.0,0.00013698,2]
[353060690,1739537439546,-500.0,0.00013698,2]
[353060691,1739537439556,-500.0,0.00013698,2]
[353060692,1739537439567,-500.0,0.00013698,2]
[353060693,1739537439577,-488.72,0.00013698,2]
[353060694,1739537439587,-731.15,0.00013698,2]
[353060695,1739537439598,-500.0,0.00013698,2]
[353060696,1739537439608,-500.0,0.00013698,2]
[353060697,1739537439618,-500.0,0.00013698,2]
[353060698,1739537439631,-500.0,0.00013698,2]
[353060699,1739537439641,-500.0,0.00013698,2]
[353060700,1739537439651,-500.0,0.00013698,2]
[353060701,1739537439661,-500.0,0.00013698,2]
[353060702,1739537439671,-500.0,0.00013698,2]
[353060703,1739537439681,-500.0,0.00013698,2]
[353060704,1739537439691,-500.0,0.00013698,2]
[353060705,1739537439702,-500.0,0.00013698,2]
[353060706,1739537439711,-795.71,0.00013698,2]
[353060707,1739537439721,-500.72580455,0.00013698,2]
[353060708,1739537439730,-500.0,0.00013698,2]
[353060709,1739537439739,-500.0,0.00013698,2]
[353060710,1739537439749,-500.2175709,0.00013698,2]
[353060711,1739537439758,-500.0,0.00013698,2]
[353060712,1739537439767,-500.0,0.00013698,2]
[353060713,1739537439777,-500.0,0.00013698,2]
[353060714,1739537439786,-500.0,0.00013698,2]
[353060715,1739537439796,-500.0,0.00013698,2]
[353060716,1739537439806,-500.0,0.00013698,2]
[353060717,1739537439815,-500.0,0.00013698,2]
[353060718,1739537439825,-500.0,0.00013698,2]
[353060719,1739537439834,-500.0,0.00013698,2]
[353060720,1739537439843,-500.0,0.00013698,2]
[353060721,1739537439853,-500.17324219,0.00013698,2]
[353060722,1739537439862,-500.0,0.00013698,2]